[Event "CCT Final-KO 2024"]
[Site "Oslo"]
[Date "2024.12.20"]
[Round "1.1"]
[White "Carlsen, Magnus"]
[Black "Vachier-Lagrave, Maxime"]
[Result "1-0"]
[ECO "A36"]
[WhiteElo "2906"]
[BlackElo "2852"]
[Annotator "TA"]
[PlyCount "97"]
[EventDate "2024.12.11"]
[EventType "k.o."]
[EventCountry "NOR"]
[SourceTitle "playchess.com"]
[Source "ChessBase"]
[SourceQuality "1"]
[TimeControl "600+2"]

{[%evp 22,97,0,-5,25,10,16,15,6,10,13,13,16,18,24,8,13,16,0,-2,0,-39,-37,-66,-58,-72,-35,-43,-48,-46,-18,-79,0,-47,0,0,0,-14,-20,-85,-24,-18,0,0,63,69,117,129,142,146,384,386,389,392,347,305,427,388,424,302,712,700,1619,995,29973,29975,29975,29977,29994,29995,29995,29996,29996,29996,29996,29997,29997,29998]} 1. c4 {[%emt 0:00:03]} g6 {[%emt 0:00:01]} 2. g3 {[%emt 0:00:08]} c5 {[%emt 0:00:07]} 3. Bg2 {[%emt 0:00:03]} Bg7 {[%emt 0:00:02]} 4. Nc3 {[%emt 0:00:02]} Nf6 {[%emt 0:00:03]} 5. Nh3 {[%emt 0:01:49]} Nc6 {[%emt 0:00:49]} 6. Nf4 {[%emt 0:00:03]} d6 {[%emt 0:00:02]} 7. b3 {[%emt 0:00:49]} O-O {[%emt 0:00:54]} 8. O-O {[%emt 0:00:07]} Rb8 {[%emt 0:00:54]} 9. Bb2 {[%emt 0:00:05]} a6 {[%emt 0:00:01]} 10. d3 {[%emt 0:00:45]} Bd7 {[%emt 0:00:23]} 11. Qd2 {[%emt 0:00:03]} b5 {[%emt 0:00:35]} 12. Ncd5 {[%emt 0:00:07]} e6 {[%emt 0:00:06]} 13. Nxf6+ {[%emt 0:00:03]} Bxf6 {[%emt 0:00:02]} 14. Bxf6 {[%emt 0:00:20]} Qxf6 {[%emt 0:00:02]} 15. e3 {[%emt 0:00:02]} Rfd8 {[%emt 0:01:17]} 16. Rac1 {[%emt 0:00:09]} bxc4 {[%emt 0:00:30]} 17. dxc4 {[%emt 0:00:12]} Ne5 {[%emt 0:01:14]} 18. Rfd1 {[%emt 0:01:25]} Bc6 {[%emt 0:00:04]} 19. Bxc6 {[%emt 0:00:38]} Nxc6 {[%emt 0:00:02]} 20. Nd3 {[%emt 0:00:22]} a5 {[%emt 0:00:09]} 21. h4 {[%emt 0:00:14]} a4 {[%emt 0:00:04]} 22. Rb1 {[%emt 0:00:19]} axb3 {[%emt 0:00:02]} 23. axb3 {[%emt 0:00:01]} Ra8 {[%emt 0:00:17]} 24. Kg2 {[%emt 0:00:04]} h5 {[%emt 0:00:18]} 25. Qe2 {[%emt 0:00:26]} Rdb8 {[%emt 0:00:33]} 26. Nf4 {[%emt 0:00:08]} (26. Ne1 $11 {keeps the balance.}) 26... Rd8 {[%emt 0:00:13]} (26... Qe7 $17) 27. Rd2 {[%emt 0:00:09]} (27. Nd3 $11 {is superior.}) 27... Kf8 {[%emt 0:00:46]} (27... Qe7 $15) 28. Rbd1 $11 {[%emt 0:00:03]} Ke7 {[%emt 0:00:02]} 29. Qf3 {[%emt 0:00:05]} Ra6 {[%emt 0:00:15]} 30. Rd5 {[%emt 0:01:02]} (30. Qe4 $11 Qe5 31. Qf3) 30... Rd7 {[%emt 0:00:20]} (30... Rb6 $17 {[%cal Oc6e5]} 31. Qe4 Ne5 (31... Rxb3 32. Rxh5 Ne5 33. Rg5 $17)) 31. Qe4 $11 {[%emt 0:00:02]} Ne5 {[%emt 0:00:20]} (31... Qh8 {simplifies} 32. R5d2 Ne5 33. Nd3 Rda7) 32. Rxc5 $1 {[%emt 0:00:03]} dxc5 {[%emt 0:00:02]} (32... Qf5 $11 33. Qxf5 gxf5) 33. Rxd7+ $14 {[%emt 0:00:01]} Kxd7 {[%emt 0:00:05]} (33... Kf8 $1 $14 34. Qb7 Ra2 35. Qc8+ (35. Rc7 Rd2 $11) 35... Kg7) 34. Qb7+ $16 {[%emt 0:00:01]} Ke8 {[%emt 0:00:14]} 35. Qxa6 {[%emt 0:00:01]} Qf5 $2 {[%emt 0:00:01]} (35... Qd8 $16 36. Qb5+ Nd7) 36. Qc8+ $18 {[%emt 0:00:03]} Ke7 {[%emt 0:00:01]} 37. Qxc5+ {[%emt 0:00:01]} Ke8 {[%emt 0:00:08]} 38. Qd4 {[%emt 0:00:11]} Ng4 {[%emt 0:00:01]} 39. e4 {[%emt 0:00:10]} Qa5 {[%emt 0:00:02]} 40. Nh3 {[%emt 0:00:19]} Qb4 $2 {[%emt 0:00:02]} (40... Qe5 41. Qxe5 Nxe5) 41. Ng5 $18 {[%emt 0:00:10]} Qe1 {[%emt 0:00:15]} 42. c5 {[%emt 0:00:04]} e5 {[%emt 0:00:02]} 43. Qa4+ {[%emt 0:00:03]} Kf8 {[%emt 0:00:01]} 44. Qa2 {[%emt 0:00:05]} f6 {[%emt 0:00:01]} 45. Qa8+ {[%emt 0:00:01]} Ke7 {[%emt 0:00:01]} 46. Qb7+ {[%emt 0:00:01]} Kd8 {[%emt 0:00:01]} 47. Ne6+ {[%emt 0:00:10]} Ke8 {[%emt 0:00:01]} 48. Qc8+ {[%emt 0:00:01]} Ke7 {[%emt 0:00:04]} 49. Qd8+ {[%emt 0:00:02]} 1-0

[Event "CCT Final-KO 2024"]
[Site "Oslo"]
[Date "2024.12.20"]
[Round "1.1"]
[White "Firouzja, Alireza"]
[Black "Nepomniachtchi, Ian"]
[Result "0-1"]
[ECO "C42"]
[WhiteElo "2870"]
[BlackElo "2827"]
[Annotator "TA"]
[PlyCount "116"]
[EventDate "2024.12.11"]
[EventType "k.o."]
[EventCountry "NOR"]
[SourceTitle "playchess.com"]
[Source "ChessBase"]
[SourceQuality "1"]
[TimeControl "600+2"]

{[%evp 48,116,0,0,0,0,0,-20,-14,-52,-52,-51,-34,-32,0,-80,-91,-119,-123,-118,-127,-162,-138,-182,-73,-138,-139,-145,-143,-135,-139,-124,-89,-87,-69,-71,-52,-70,-68,-69,-58,-69,-66,-68,-56,-71,-69,-70,-70,-77,-41,-142,-142,-239,-101,-298,-320,-545,-384,-517,-539,-531,-520,-637,-487,-481,-457,-799,-798,-786,-778]} 1. e4 {[%emt 0:00:01]} e5 {[%emt 0:00:02]} 2. Nf3 {[%emt 0:00:01]} Nf6 {[%emt 0:00:01]} 3. Nxe5 {[%emt 0:00:01]} d6 {[%emt 0:00:00]} 4. Nf3 {[%emt 0:00:02]} Nxe4 {[%emt 0:00:02]} 5. Nc3 {[%emt 0:00:01]} Nxc3 {[%emt 0:00:01]} 6. dxc3 {[%emt 0:00:01]} Be7 {[%emt 0:00:01]} 7. Be3 {[%emt 0:00:01]} Nd7 {[%emt 0:00:02]} 8. Qd2 {[%emt 0:00:03] C42: Petroff Defence: 3 Nxe5 and unusual White 3rd moves.} O-O {[%emt 0:00:03]} 9. O-O-O {[%emt 0:00:02]} Nf6 {[%emt 0:00:01]} 10. Bd3 {[%emt 0:00:06]} Re8 $1 {[%emt 0:00:02][%mdl 4] is currently scoring better than 10...c5.} 11. Rhe1 {[%emt 0:00:06]} Bg4 {[%emt 0:00:02]} 12. c4 {[%emt 0:00:05]} g6 {[%emt 0:00:05]} 13. Kb1 {[%emt 0:00:15]} Qd7 {[%emt 0:00:47]} 14. Bd4 $146 {[%emt 0:00:18]} ({Predecessor:} 14. Be2 Ne4 15. Qa5 Bf6 16. h3 b6 17. Qa3 Be6 18. Bd3 Nc5 19. Nd4 Nxd3 20. Qxd3 Bf5 21. Nxf5 Qxf5 22. Qxf5 gxf5 23. b3 Kg7 24. Kc1 Kg6 25. g3 Re6 {½-½ Betker,J (2454)-Velilla Velasco,F (2545) EU-ch 2019 ct01 email}) 14... Bxf3 {[%emt 0:00:26]} 15. gxf3 {[%emt 0:00:01]} Nh5 {[%emt 0:00:05]} 16. Be4 {[%emt 0:00:05]} c6 {[%emt 0:00:21]} 17. f4 {[%emt 0:00:03]} Qg4 {[%emt 0:01:18]} 18. f5 {[%emt 0:00:22]} Bf6 {[%emt 0:02:32]} 19. f3 {[%emt 0:00:59]} Qh4 {[%emt 0:00:24]} 20. Bf2 {[%emt 0:01:52]} Qxh2 {[%emt 0:00:01]} 21. Rh1 {[%emt 0:00:03]} Qf4 {[%emt 0:00:29]} 22. Qxf4 {[%emt 0:00:49]} Nxf4 {[%emt 0:00:03]} 23. Rxd6 {[%emt 0:00:01]} Kg7 {[%emt 0:00:39]} 24. Bc5 {[%emt 0:02:47]} Nh5 {[%emt 0:00:26]} 25. Rg1 {[%emt 0:00:28]} Red8 {[%emt 0:00:02]} 26. Rxd8 {[%emt 0:00:28]} Bxd8 {[%emt 0:00:08]} 27. Rd1 {[%emt 0:00:13]} Bb6 {[%emt 0:00:22]} 28. Bb4 {[%emt 0:00:26]} Rd8 {[%emt 0:00:15]} 29. Bc3+ {[%emt 0:00:02]} Kg8 {[%emt 0:00:29]} 30. Bd3 {[%emt 0:00:27]} Nf4 {[%emt 0:00:34]} 31. fxg6 {[%emt 0:00:01]} (31. Bf6 $11 Re8 32. a3) 31... fxg6 $17 {[%emt 0:00:13]} 32. c5 {[%emt 0:00:00]} Bxc5 {[%emt 0:00:06]} 33. Bc4+ {[%emt 0:00:02]} Nd5 {[%emt 0:00:00]} 34. Be5 {[%emt 0:00:07]} Kf7 {[%emt 0:00:02]} 35. f4 {[%emt 0:00:12]} Ke6 {[%emt 0:00:02]} (35... Bd6 $19 {is more deadly.} 36. Bxd5+ cxd5 37. Rxd5 Bc7 38. Rxd8 Bxd8) 36. Rh1 {[%emt 0:00:18]} ({Better is} 36. Re1 Kf7 37. Rh1) 36... h5 $17 {[%emt 0:00:06]} 37. Bd3 {[%emt 0:00:10]} Bd6 {[%emt 0:00:18]} 38. Bxd6 {[%emt 0:00:12]} Rxd6 {[%emt 0:00:01]} 39. f5+ {[%emt 0:00:03]} (39. Bxg6 $2 {is the wrong capture.} Nxf4 40. Bd3 Nxd3 41. cxd3 Rd5 (41... Rxd3 42. Rxh5 Rd1+ 43. Kc2 $15)) 39... gxf5 {[%emt 0:00:03]} 40. Rxh5 {[%emt 0:00:01]} Ne7 {[%emt 0:00:11]} 41. Kc1 {[%emt 0:00:02]} Rd4 {[%emt 0:00:07]} 42. Kd2 {[%emt 0:00:02]} Rg4 {[%emt 0:00:01]} 43. Rh6+ {[%emt 0:00:04]} Rg6 {[%emt 0:00:01]} 44. Rh7 {[%emt 0:00:01]} a5 {[%emt 0:00:05]} 45. a4 {[%emt 0:00:03]} Rf6 {[%emt 0:00:05]} 46. Ke3 {[%emt 0:00:01]} b6 {[%emt 0:00:07]} 47. Bc4+ {[%emt 0:00:04]} Kd6 {[%emt 0:00:00]} 48. Kf4 {[%emt 0:00:02]} Nd5+ {[%emt 0:00:04]} 49. Kg5 {[%emt 0:00:01]} ({White should play} 49. Bxd5 $15 Kxd5 50. Rh8) 49... Rf8 $17 {[%emt 0:00:01]} 50. Rh6+ {[%emt 0:00:02] [#]} (50. Bxd5 $17 {only move.} Kxd5 51. Kf4) 50... Kc5 {[%emt 0:00:01]} (50... Ke5 $1 $19 {Threatens to win with ...Rg8+.} 51. Rxc6 f4) 51. Bd3 $2 {[%emt 0:00:03]} (51. Be2 $17 {might work better.}) 51... f4 $19 {[%emt 0:00:01]} 52. Rh2 $2 {[%emt 0:00:03]} (52. Kg4 {is a better defense.} f3 53. Re6) 52... Kd4 {[%emt 0:00:13]} 53. Re2 {[%emt 0:00:00]} f3 {[%emt 0:00:02]} 54. Re4+ {[%emt 0:00:01]} Kc5 {[%emt 0:00:00]} 55. Rc4+ {[%emt 0:00:01]} Kd6 {[%emt 0:00:01]} 56. Re4 {[%emt 0:00:05]} f2 {[%emt 0:00:02]} 57. Bf1 {[%emt 0:00:03]} (57. c4 $142 Rf3 (57... f1=R $2 58. Bxf1 Rxf1 59. cxd5 $19) (57... f1=N $2 58. cxd5 Nd2 59. Rg4 $19) (57... f1=B $2 58. Bxf1 Rxf1 59. cxd5 $19) 58. cxd5 Rxd3 59. Rf4 Rxd5+ (59... Kxd5 $2 60. Rxf2 Rd4 61. b3 $19) 60. Kg4) 57... Rg8+ $19 {[%emt 0:00:01]} 58. Kf5 {[%emt 0:00:00]} Rg1 {[%emt 0:00:01]} 0-1

[Event "CCT Final-KO 2024"]
[Site "Oslo"]
[Date "2024.12.21"]
[Round "1.1"]
[White "Carlsen, Magnus"]
[Black "Nepomniachtchi, Ian"]
[Result "1/2-1/2"]
[ECO "B22"]
[WhiteElo "2838"]
[BlackElo "2758"]
[Annotator "TA"]
[PlyCount "173"]
[EventDate "2024.12.11"]
[EventType "k.o."]
[EventCountry "NOR"]
[SourceTitle "playchess.com"]
[Source "ChessBase"]
[SourceQuality "1"]
[TimeControl "600+2"]

{[%evp 92,173,0,0,0,0,0,0,0,0,0,0,0,0,61,50,196,22,58,0,0,0,0,0,0,0,0,0,0,0,0,0,0,0,0,0,0,0,0,-8,-8,-8,-8,-8,0,-210,-152,-365,-241,-291,0,-8,-8,-8,-8,-126,-129,-227,-275,-371,0,0,0,0,0,0,0,0,0,0,0,0,0,0,0,0,0,0,0,0,0,0,0,0]} 1. e4 {[%emt 0:00:02]} c5 {[%emt 0:00:01]} 2. c3 {[%emt 0:00:02]} Nf6 {[%emt 0:00:02]} 3. e5 {[%emt 0:00:01]} Nd5 {[%emt 0:00:01]} 4. Nf3 {[%emt 0:00:01]} Nc6 {[%emt 0:00:01]} 5. d4 {[%emt 0:00:04]} cxd4 {[%emt 0:00:06]} 6. Bc4 {[%emt 0:00:02]} Nb6 {[%emt 0:00:01]} 7. Bb3 {[%emt 0:00:01]} g6 {[%emt 0:00:12]} 8. cxd4 {[%emt 0:00:25]} Bg7 {[%emt 0:00:01]} 9. Nc3 {[%emt 0:00:06]} O-O {[%emt 0:00:05]} 10. O-O {[%emt 0:00:19]} d6 {[%emt 0:00:02]} 11. exd6 {[%emt 0:00:04]} Qxd6 {[%emt 0:00:03]} 12. d5 {[%emt 0:00:29]} Na5 {[%emt 0:00:34]} 13. Re1 {[%emt 0:00:03]} Nxb3 {[%emt 0:01:21]} 14. Qxb3 {[%emt 0:00:57]} Bg4 {[%emt 0:00:45]} 15. Bg5 {[%emt 0:00:47]} Rfe8 {[%emt 0:00:25]} 16. Rad1 {[%emt 0:00:15]} Bxf3 {[%emt 0:00:18]} 17. gxf3 {[%emt 0:00:02]} Qd7 {[%emt 0:01:09]} 18. Ne4 {[%emt 0:00:22]} h6 {[%emt 0:00:38]} 19. Be3 {[%emt 0:00:52]} Qh3 {[%emt 0:00:49]} 20. Bf4 {[%emt 0:00:33]} Nd7 {[%emt 0:00:59]} 21. d6 {[%emt 0:00:41]} Ne5 {[%emt 0:00:35]} 22. Bg3 {[%emt 0:00:04]} Rad8 {[%emt 0:00:32]} 23. f4 {[%emt 0:00:31]} Nc6 {[%emt 0:00:20]} 24. Qxb7 {[%emt 0:00:29]} Nd4 {[%emt 0:00:01]} 25. Kh1 {[%emt 0:00:40]} exd6 {[%emt 0:00:17]} 26. Qd5 {[%emt 0:00:43]} Nf5 {[%emt 0:00:03]} 27. b4 {[%emt 0:00:09]} Re6 {[%emt 0:00:11]} 28. Nc5 {[%emt 0:00:03]} Rxe1+ {[%emt 0:00:05]} 29. Rxe1 {[%emt 0:00:01]} Kh7 {[%emt 0:00:12]} 30. Ne4 {[%emt 0:00:04]} Re8 {[%emt 0:00:04]} 31. Kg1 {[%emt 0:00:56]} Re6 {[%emt 0:00:01]} 32. Rd1 {[%emt 0:00:11]} Qh5 {[%emt 0:00:04]} 33. Rd2 {[%emt 0:00:14]} Qg4 {[%emt 0:00:14]} 34. f3 {[%emt 0:00:02]} Qh3 {[%emt 0:00:08]} 35. Bf2 {[%emt 0:00:01]} Ne7 {[%emt 0:00:14]} 36. Qd3 {[%emt 0:00:07]} Qf5 {[%emt 0:00:08]} 37. Nxd6 {[%emt 0:00:08]} Qxf4 {[%emt 0:00:02]} 38. Bg3 {[%emt 0:00:03]} Qxb4 {[%emt 0:00:04]} 39. Nxf7 {[%emt 0:00:01]} Nf5 {[%emt 0:00:03]} 40. Kg2 {[%emt 0:00:20]} Qe7 {[%emt 0:00:05]} 41. Nd6 {[%emt 0:00:14]} Re3 {[%emt 0:00:15]} 42. Qc4 {[%emt 0:00:01]} Nxg3 {[%emt 0:00:06]} 43. hxg3 {[%emt 0:00:02]} Rc3 {[%emt 0:00:02]} 44. Qe4 {[%emt 0:00:04]} Qd7 {[%emt 0:00:05]} 45. Qe2 {[%emt 0:00:03]} Rc6 {[%emt 0:00:02]} 46. Ne4 {[%emt 0:00:02]} Qe7 {[%emt 0:00:01]} 47. Qb5 {[%emt 0:00:02]} Rc7 {[%emt 0:00:01]} 48. Qd5 {[%emt 0:00:01]} Rb7 {[%emt 0:00:04]} 49. a4 {[%emt 0:00:01]} Rb2 {[%emt 0:00:04]} 50. Rxb2 {[%emt 0:00:02]} Bxb2 {[%emt 0:00:00]} 51. a5 {[%emt 0:00:00]} Bg7 {[%emt 0:00:02]} 52. a6 {[%emt 0:00:01]} Qc7 {[%emt 0:00:04]} (52... Qa3 $11) 53. Qb7 $14 {[%emt 0:00:02]} Be5 {[%emt 0:00:01] [#]} (53... Qc2+ $14 54. Kh3 h5) 54. Nf6+ $2 {[%emt 0:00:02]} (54. f4 $1 $18 {[%mdl 512]} Qxb7 55. axb7) 54... Kh8 $1 $11 {[%emt 0:00:01]} 55. Qa8+ {[%emt 0:00:02]} (55. Kh3 $1 $14) 55... Qb8 $11 {[%emt 0:00:01]} 56. Qxb8+ {[%emt 0:00:02]} (56. Qb7 $6 Qc7 $16) 56... Bxb8 {[%emt 0:00:01]} 57. f4 {[%emt 0:00:04]} Kg7 {[%emt 0:00:00]} 58. Nd5 {[%emt 0:00:03]} Kf7 {[%emt 0:00:01]} 59. Kf3 {[%emt 0:00:01]} Ke6 {[%emt 0:00:01]} 60. Ke4 {[%emt 0:00:01]} Bd6 {[%emt 0:00:03]} 61. Nc3 {[%emt 0:00:04]} Bc5 {[%emt 0:00:01]} 62. Nb5 {[%emt 0:00:02]} h5 {[%emt 0:00:01]} 63. Nc3 {[%emt 0:00:06]} Bf2 {[%emt 0:00:02]} 64. Kf3 {[%emt 0:00:02]} Bd4 {[%emt 0:00:01]} 65. Ne4 {[%emt 0:00:01]} Kd5 {[%emt 0:00:01]} 66. Ng5 {[%emt 0:00:02]} Bf6 {[%emt 0:00:05]} 67. Ne4 {[%emt 0:00:01]} Be7 {[%emt 0:00:01]} 68. Ke3 $2 {[%emt 0:00:03]} (68. Nf2 $11 {and White has nothing to worry.}) 68... Kc6 {[%emt 0:00:01]} 69. Kd4 $2 {[%emt 0:00:00]} (69. Nc3 $17 {was necessary.}) 69... Kb6 {[%emt 0:00:02]} 70. Ke5 {[%emt 0:00:01]} h4 $2 {[%emt 0:00:02]} (70... Kxa6 $19 71. Nc3 h4 72. gxh4 Bxh4) 71. gxh4 {[%emt 0:00:01]} Bxh4 {[%emt 0:00:01]} 72. Ke6 {[%emt 0:00:01]} Kxa6 {[%emt 0:00:02]} 73. Kf7 {[%emt 0:00:01] [#]} (73. f5 $1 $11 {was the only way to keep the balance.} gxf5 74. Kxf5) 73... Kb5 $1 $17 {[%emt 0:00:03]} 74. Kxg6 {[%emt 0:00:01]} a5 {[%emt 0:00:01]} 75. f5 {[%emt 0:00:01]} Bd8 $2 {[%emt 0:00:01]} (75... Kc4 $19 {And now ...a4 would win.} 76. Nd2+ Kc3 77. Ne4+ Kc2) 76. f6 $11 {[%emt 0:00:02]} Bxf6 {[%emt 0:00:01]} 77. Kxf6 {[%emt 0:00:01]} Kb4 {[%emt 0:00:01]} 78. Nd2 {[%emt 0:00:02]} Kc3 {[%emt 0:00:00]} (78... a4 $5 79. Nb1 $8 Kc4 $11) 79. Nb1+ $1 {[%emt 0:00:02]} Kc2 {[%emt 0:00:01]} (79... Kb2 $5 80. Nd2 $8 a4 $11) 80. Na3+ {[%emt 0:00:01]} Kb3 {[%emt 0:00:01]} 81. Nb1 {[%emt 0:00:01]} Kb2 {[%emt 0:00:00]} 82. Nd2 {[%emt 0:00:01]} a4 {[%emt 0:00:01]} 83. Ke5 {[%emt 0:00:01]} Kc3 {[%emt 0:00:00]} (83... a3 $5 84. Nc4+ $8 Kc3 85. Nxa3 $11) 84. Kd5 {[%emt 0:00:03]} Kxd2 {[%emt 0:00:02]} (84... a3 $5 85. Nb1+ $8 Kd3 86. Nxa3 $11) 85. Kc4 {[%emt 0:00:01]} Ke1 {[%emt 0:00:01]} (85... a3 $5 86. Kb3 $8 Ke3 $11) 86. Kb4 {[%emt 0:00:01]} Kf1 {[%emt 0:00:01]} 87. Kxa4 {[%emt 0:00:01]} 1/2-1/2

[Event "CCT Final-KO 2024"]
[Site "Oslo"]
[Date "2024.12.21"]
[Round "1.1"]
[White "Nepomniachtchi, Ian"]
[Black "Carlsen, Magnus"]
[Result "1/2-1/2"]
[ECO "E42"]
[WhiteElo "2758"]
[BlackElo "2838"]
[Annotator "TA"]
[PlyCount "103"]
[EventDate "2024.12.11"]
[EventType "k.o."]
[EventCountry "NOR"]
[SourceTitle "playchess.com"]
[Source "ChessBase"]
[SourceQuality "1"]
[TimeControl "600+2"]

{[%evp 12,103,28,28,22,18,16,21,18,35,34,12,17,9,45,11,10,8,8,2,0,0,25,17,18,24,23,27,38,35,49,48,33,31,44,13,52,75,70,6,3,4,1,2,2,10,6,4,56,39,81,81,91,91,87,87,80,27,180,147,151,165,199,132,191,199,237,256,252,250,289,289,296,296,296,312,329,322,339,0,0,0,0,0,0,0,0,0,0,0,0,0,0,0]} 1. d4 {[%emt 0:00:01]} Nf6 {[%emt 0:00:04]} 2. c4 {[%emt 0:00:02]} e6 {[%emt 0:00:01]} 3. Nc3 {[%emt 0:00:01]} Bb4 {[%emt 0:00:02][%cal Bf8b4,Bb4a5,Ba5c7,Bc7e5][%mdl 32]} 4. e3 {[%emt 0:00:01]} c5 {[%emt 0:00:04]} 5. Nge2 {[%emt 0:00:18]} d5 {[%emt 0:00:05]} 6. a3 {[%emt 0:00:04]} Ba5 {[%emt 0:00:01]} 7. dxc5 {[%emt 0:00:14]} dxc4 {[%emt 0:00:05]} 8. Bd2 {[%emt 0:00:05]} Nbd7 {[%emt 0:00:48]} 9. Ng3 {[%emt 0:02:16]} Nxc5 {[%emt 0:00:50][%cal Ob7b5] ...b5! would now be deadly.} 10. Bxc4 {[%emt 0:00:02]} Bc7 {[%emt 0:00:18]} 11. O-O {[%emt 0:00:08]} O-O {[%emt 0:00:03]} 12. Qe2 {[%emt 0:00:10]} Bd7 {[%emt 0:00:31]} 13. Rfd1 {[%emt 0:00:06]} Qe7 {[%emt 0:00:09]} 14. Nb5 {[%emt 0:00:07]} Be5 {[%emt 0:00:35]} 15. Bb4 {[%emt 0:00:01][%cal Bd2b4,Bb4c3,Bc3e5][%mdl 32]} a6 {[%emt 0:00:43]} 16. Nd4 {[%emt 0:00:18]} a5 {[%emt 0:00:03]} 17. Bc3 {[%emt 0:00:25][%cal Od4e6]} Rfd8 {[%emt 0:01:41] [#]} 18. Nc6 $1 {[%emt 0:01:06]} Bxc6 {[%emt 0:00:01]} 19. Bxe5 {[%emt 0:00:01]} Ba4 {[%emt 0:00:18]} 20. Rxd8+ {[%emt 0:00:41]} Rxd8 {[%emt 0:00:01]} 21. h3 {[%emt 0:00:00]} h6 {[%emt 0:00:03]} 22. Rc1 {[%emt 0:00:07]} Bc6 {[%emt 0:00:22]} 23. Bb5 {[%emt 0:00:16]} Bxb5 {[%emt 0:01:15]} 24. Qxb5 {[%emt 0:00:01]} Nd3 {[%emt 0:00:02]} 25. Rc7 {[%emt 0:00:10]} (25. Bxf6 $1 $14 Qxf6 26. Rc2) 25... Qe8 $1 $11 {[%emt 0:00:01]} 26. Rxb7 {[%emt 0:00:13]} (26. Qxa5 b6 27. Qc3 (27. Qxb6 $2 Nxe5 28. Qb3 Nd5 $19) 27... Nd5 28. Qxd3 Nxc7 $17) 26... Qxb5 {[%emt 0:00:07]} 27. Rxb5 {[%emt 0:00:01]} Nxe5 {[%emt 0:00:02]} 28. Rxe5 {[%emt 0:00:01][%mdl 4096] Endgame KRN-KRN. White is a pawn up.} Rd1+ {[%emt 0:00:21]} 29. Nf1 {[%emt 0:00:35][%cal Oe5c5]} a4 {[%emt 0:00:02]} (29... Nd5 $11) 30. g4 {[%emt 0:00:22]} (30. Ra5 Ne4 31. f3 (31. Rxa4 $2 Nd2 $19) 31... Nd2 $17) 30... Nd5 {[%emt 0:00:47] [#]} 31. Re4 $1 {[%emt 0:00:08]} Rb1 {[%emt 0:00:01]} 32. Rxa4 {[%emt 0:00:03] Threatens to win with Ra8+.} Rxb2 {[%emt 0:00:01]} 33. Ng3 {[%emt 0:00:15]} Nc3 {[%emt 0:00:02]} 34. Rc4 {[%emt 0:00:11]} (34. Rb4 $16 Ra2 35. Rb3) 34... Ne2+ $2 {[%emt 0:00:01]} (34... Nd1 $1 $11 {and Black is okay.}) 35. Kg2 {[%emt 0:00:17]} Nxg3 {[%emt 0:00:02]} 36. Kxg3 $16 {[%emt 0:00:01] KR-KR. White is a pawn up.} Ra2 {[%emt 0:00:02]} 37. Rc8+ {[%emt 0:00:06]} Kh7 {[%emt 0:00:02]} 38. Ra8 {[%emt 0:00:00]} g5 {[%emt 0:00:01]} 39. a4 {[%emt 0:00:05][%cal Ba3a4,Ba4a5,Ba5a6,Ba6a7][%mdl 32]} Kg7 {[%emt 0:00:08]} 40. a5 {[%emt 0:00:01]} Ra4 {[%emt 0:00:12]} 41. a6 {[%emt 0:00:02]} Ra2 {[%emt 0:00:01]} 42. a7 {[%emt 0:00:40]} Kf6 {[%emt 0:00:02]} 43. h4 {[%emt 0:00:02]} Ra3 {[%emt 0:00:06]} 44. Kg2 {[%emt 0:00:23]} Kg7 {[%emt 0:00:03]} 45. f4 $2 {[%emt 0:00:13]} ({White should play} 45. h5 $18) 45... gxh4 $11 {[%emt 0:00:13]} 46. e4 {[%emt 0:00:03]} e5 {[%emt 0:00:04]} 47. fxe5 {[%emt 0:00:10]} Rg3+ {[%emt 0:00:02]} 48. Kh1 {[%emt 0:00:04]} Rh3+ {[%emt 0:00:02]} 49. Kg2 {[%emt 0:00:02]} Rg3+ {[%emt 0:00:01]} 50. Kh2 {[%emt 0:00:01] Threatening mate with Rd8.} Ra3 $1 {[%emt 0:00:02]} 51. Kg2 {[%emt 0:00:04]} Rg3+ {[%emt 0:00:02]} 52. Kh2 {[%emt 0:00:01]} 1/2-1/2